Cogmind - Beta 14 @@@ ROGUE MODE // 2025.03.09 @ 18:51:53 Player: NeoBioHazard Result: Destroyed by S-27 Virus with Autogun Performance ------------- Evolutions (6) 3000 Regions Visited (9) 1800 Robots Destroyed (21) 105 Value Destroyed (411) 411 Prototype IDs (5) 100 Alien Tech Used (0) 0 Bonus (0) 0 TOTAL SCORE: 5416 Bonus ------- None Cogmind --------- Core Integrity 0/1150 Matter 201/300 Energy 99/100 System Corruption 2% Temperature Cool (0) Movement Core (50) Location -4/Factory Parts ------- > --- POWER (2) -------- (None) > --- PROPULSION (4) --- (None) > --- UTILITY (10) ----- Advanced Signal Interpreter > --- WEAPON (3) ------- (None) > --- INVENTORY (5) ---- Micro Fission Core Actuator Array Transmission Jammer Peak State ------------ > --- POWER ------------ Nuclear Core > --- PROPULSION ------- Cesium-ion Thruster Cesium-ion Thruster Cesium-ion Thruster Cesium-ion Thruster > --- UTILITY ---------- Advanced Visual Processing Unit Sensor Array Improved Signal Interpreter Improved Terrain Scanner Terrain Scan Processor Seismic Detector Transmission Jammer Hacking Suite System Shield > --- WEAPON ----------- Heavy Hammer Powered Hammer Katana > --- INVENTORY -------- Actuator Array Rocket Launcher Heavy Pick Heavy Pick Heavy Pick [Rating: 49] Favorites ----------- Power Nuclear Core Engine Light Ion Engine Power Core Nuclear Core Propulsion Cesium-ion Thruster Treads Light Treads Hover Unit Antigrav System Flight Unit Cesium-ion Thruster Utility Terrain Scan Processor Device Seismic Detector Storage Small Storage Unit Processor Terrain Scan Processor Hackware Hacking Suite Weapon Katana Energy Gun Small Laser Launcher Rocket Launcher Impact Weapon Heavy Hammer Slashing Weapon Katana Piercing Weapon Heavy Pick Build | -11 -10 -9 -8 -7 -6 -5 -5 -5 -4 ------- Run | Yrd Mat Mat Mat Fac Fac Fac Upp Upp Fac Slots Evolved 12 | . . 2 2 2 2 2 . . 2 Power 1 | . . . . . . . . . 1 Propulsion 2 | . . . . 1 1 . . . . Utility 8 | . . 2 2 1 1 1 . . 1 Weapon 1 | . . . . . . 1 . . . Parts Attached 46 | 6 . 6 6 4 6 2 1 . 15 Power 4 | 1 . . . . 1 . 1 . 1 Engine 1 | 1 . . . . . . . . . Core 3 | . . . . . 1 . 1 . 1 Reactor . | . . . . . . . . . . Propulsion 12 | 2 . 1 1 . 3 . . . 5 Treads 3 | 2 . 1 . . . . . . . Leg . | . . . . . . . . . . Wheel . | . . . . . . . . . . Hover 2 | . . . . . . . . . 2 Flight 7 | . . . 1 . 3 . . . 3 Utility 20 | 1 . 4 4 4 1 1 . . 5 Device 10 | . . 1 2 3 . 1 . . 3 Storage 1 | 1 . . . . . . . . . Processor 7 | . . 3 1 1 . . . . 2 Hackware 2 | . . . 1 . 1 . . . . Protection . | . . . . . . . . . . Artifact . | . . . . . . . . . . Weapon 10 | 2 . 1 1 . 1 1 . . 4 Energy Gun 3 | 2 . . . . . . . . 1 Energy Cannon . | . . . . . . . . . . Ballistic Gun . | . . . . . . . . . . Ballistic Cannon . | . . . . . . . . . . Launcher 1 | . . . . . . . . . 1 Special Weapon . | . . . . . . . . . . Impact Weapon 3 | . . 1 . . 1 1 . . . Slashing Weapon 1 | . . . 1 . . . . . . Piercing Weapon 2 | . . . . . . . . . 2 Special Melee Weapon . | . . . . . . . . . . Unidentified Prototypes . | . . . . . . . . . . Corrupted Parts 1 | . . . . 1 . . . . . System Corruption 3 | . . . . 3 . . . . . Parts Lost 21 | . . 1 . 1 . 2 . . 17 Power 1 | . . . . . . . . . 1 Propulsion 7 | . . 1 . . . 1 . . 5 Utility 7 | . . . . 1 . 1 . . 5 Weapon 6 | . . . . . . . . . 6 Highest Loss Streak 11 | . . 1 . 1 . 2 . . 11 To Critical Strikes . | . . . . . . . . . . Average Slot Usage (%) 61 | . 79 59 70 66 67 96 76 76 25 Engine 1 | . 11 . . . . . . . . Core 1 | . . . . . . 4 5 5 1 Treads 8 | . 28 20 1 . . . . . . Flight 6 | . . . 8 7 8 21 17 17 4 Device 10 | . . 3 16 20 20 22 17 17 2 Storage 1 | . 11 . . . . . . . . Processor 15 | . . 22 27 23 20 16 11 11 7 Hackware 4 | . . . 8 7 10 11 11 11 4 Energy Gun 3 | . 28 2 . . . . . . . Impact Weapon 4 | . . 9 5 . . 11 5 5 1 Slashing Weapon 2 | . . . 3 7 6 5 5 5 . Peak Build Rating 49 | 6 6 10 19 25 42 49 42 36 47 Average Rating 17 | 4 5 7 15 20 26 46 36 36 19 On Entrance 21 | . 6 4 9 18 23 42 39 36 36 Naked Turns 2 | . . . . . . . . . 2 Heaviest Build 19 | 11 11 4 5 5 15 19 15 15 15 Greatest Support 40 | 40 40 20 5 5 20 20 15 15 22 Greatest Overweight (x) 1 | . . 1 . . . 1 . . 1 Average Overweight (x) . | . . . . . . . . . . Largest Inventory Capacity 8 | 8 8 5 5 5 5 5 5 5 5 Average Capacity 5 | 7 7 5 5 5 5 5 5 5 5 Most Carried 5 | 2 3 5 5 5 5 5 5 5 5 Average Carried 4 | 1 2 4 4 4 4 3 4 5 3 Final Capacity 8 | 8 5 5 5 5 5 5 5 5 5 Final Carried 5 | 2 3 5 5 5 4 5 5 5 3 Class Distribution -------------------- 45% | Mutant 22% | Scout 16% | Hacker-Scout 6% | Sprinter 4% | Hacker-Ninja Dominant Class ---------------- Mutant | -10/Materials Mutant | -9/Materials Scout | -8/Materials Scout | -7/Factory Hacker-Scout | -6/Factory Hacker-Ninja | -5/Factory Hacker-Scout | -5/Upper Caves Hacker-Scout | -5/Upper Caves Sprinter | -4/Factory Resources | -11 -10 -9 -8 -7 -6 -5 -5 -5 -4 ----------- Run | Yrd Mat Mat Mat Fac Fac Fac Upp Upp Fac Matter Collected 505 | 248 12 60 . 67 . . . 1 117 Remotely . | . . . . . . . . . . Salvage Created 546 | . 66 334 . 67 . . . . 79 Parts 34 | . 3 17 . 10 . . . . 4 Haulers Intercepted 2 | . 1 1 . . . . . . . Recyclers Shooed . | . . . . . . . . . . Parts Field Recycled . | . . . . . . . . . . Retrieved Matter . | . . . . . . . . . . Parts Self-Destructed 2 | . . . . . . . 2 . . Prevented . | . . . . . . . . . . Kills | -11 -10 -9 -8 -7 -6 -5 -5 -5 -4 ------- Run | Yrd Mat Mat Mat Fac Fac Fac Upp Upp Fac Combat Hostiles Destroyed 10 | . . 7 . . . . . . 3 Melee 5 | . . 4 . . . . . . 1 Classes Destroyed 9 | . 2 5 . 1 . . . . 1 Worker 2 | . . 2 . . . . . . . Builder 2 | . . 1 . 1 . . . . . Hauler 2 | . 1 1 . . . . . . . Operator 1 | . . . . 1 . . . . . Watcher 4 | . 1 2 . 1 . . . . . Swarmer 3 | . . 3 . . . . . . . Cutter 3 | . . . . . . . . . 3 Grunt 2 | . . 2 . . . . . . . Sentry 2 | . . 2 . . . . . . . Best Kill Streak 6 | . 1 6 . 2 . . . . 3 Combat Bots Only 3 | . . 3 . . . . . . 3 Max Kills in Single Turn 1 | . 1 1 . 1 . . . . 1 Gunslinging . | . . . . . . . . . . Exploded . | . . . . . . . . . . Melee 1 | . . 1 . . . . . . 1 Uniques/NPCs Destroyed . | . . . . . . . . . . Combat | -11 -10 -9 -8 -7 -6 -5 -5 -5 -4 -------- Run | Yrd Mat Mat Mat Fac Fac Fac Upp Upp Fac Hostile Shots Fired 226 | . . 61 . . . 2 16 . 147 Missed 100 | . . 17 . . . 1 12 . 70 Damage Taken 2682 | . . 519 . 30 . 89 68 . 1976 Core 1405 | . . 181 . . . 22 52 . 1150 Absorbed by Shields . | . . . . . . . . . . Core Remaining (%) 92 | 100 100 54 100 100 100 . . 92 . Volleys Fired 10 | . 7 . . . . . . . 3 Largest 2 | . 2 . . . . . . . 1 Hottest 90 | . 90 . . . . . . . 33 Shots Fired 16 | . 13 . . . . . . . 3 Gun 13 | . 13 . . . . . . . . Cannon . | . . . . . . . . . . Launcher 3 | . . . . . . . . . 3 Special . | . . . . . . . . . . Kinetic . | . . . . . . . . . . Thermal 13 | . 13 . . . . . . . . Explosive 3 | . . . . . . . . . 3 Electromagnetic . | . . . . . . . . . . Robot Hit Streak 3 | . 3 . . . . . . . . Robot Miss Streak 1 | . 1 . . . . . . . . Penetration Max . | . . . . . . . . . . Secondary Targets . | . . . . . . . . . . Shots Hit Robots 54 | . 8 26 . 4 1 . . . 15 Core Hits 18 | . 3 6 . 3 . . . . 6 Critical Kills 2 | . . 1 . . . . . . 1 Critical Parts Destroyed 6 | . . 5 . . . . . . 1 Critical Strikes 10 | . . 6 . 1 . . . . 3 Smash 8 | . . 6 . . . . . . 2 Sever 2 | . . . . 1 . . . . 1 Melee Attacks 98 | . . 41 4 9 8 13 . . 23 Impact 72 | . . 41 4 . . 13 . . 14 Slashing 20 | . . . . 9 8 . . . 3 Piercing 6 | . . . . . . . . . 6 Sneak Attacks 5 | . . 3 . 2 . . . . . Combat Hostiles . | . . . . . . . . . . Follow-up Attacks 2 | . . . . . . . . . 2 Damage Inflicted 1883 | . 88 1067 . 236 39 . . . 453 Guns 88 | . 88 . . . . . . . . Cannons . | . . . . . . . . . . Explosions 50 | . . . . . . . . . 50 Melee 1725 | . . 1067 . 236 39 . . . 383 Ramming 20 | . . . . . . . . . 20 Kinetic . | . . . . . . . . . . Thermal 88 | . 88 . . . . . . . . Explosive 50 | . . . . . . . . . 50 Electromagnetic . | . . . . . . . . . . Impact 1331 | . . 1067 . . . . . . 264 Slashing 316 | . . . . 236 39 . . . 41 Piercing 78 | . . . . . . . . . 78 Highest Corruption 3 | . . . . 3 . 3 3 3 2 Average Corruption 2 | . . . . 3 . 3 3 3 1 Corruption Purged . | . . . . . . . . . . Corruption Blocked . | . . . . . . . . . . Effects 7 | . . . . 1 . . 3 1 2 Message Errors 2 | . . . . 1 . . . . 1 Matter Fused 2 | . . . . . . . 2 . . Heat Flow Errors 1 | . . . . . . . . . 1 Energy Discharges 1 | . . . . . . . 1 . . Data Loss (minor) 1 | . . . . . . . . 1 . Overload Shots . | . . . . . . . . . . Overflow Damage 450 | . . 361 . . . . . . 89 Projectiles . | . . . . . . . . . . Explosions . | . . . . . . . . . . Melee 450 | . . 361 . . . . . . 89 Knockbacks 6 | . . 6 . . . . . . . Impact 5 | . . 5 . . . . . . . Kinetic . | . . . . . . . . . . Secondary 1 | . . 1 . . . . . . . Self-Inflicted Damage 18 | . . . . . . . . . 18 Shots . | . . . . . . . . . . Rammed 2 | . . . . . . . . . 2 Targets Rammed 2 | . . . . . . . . . 2 Kicked . | . . . . . . . . . . Crushed . | . . . . . . . . . . Highest Temperature 195 | . 90 . . . . . . . 195 Average Temperature 50 | . 40 . . . . . . . 109 Received Heat Transfer 195 | . . 174 . . . . 21 . . Siege Activations . | . . . . . . . . . . Robots Corrupted 8 | . . 6 . . . . . . 2 Combat Hostiles 5 | . . 3 . . . . . . 2 Parts Fried 16 | . . 11 . . . . . . 5 Impact Corruptions 15 | . . 12 . . . . . . 3 Robots Melted . | . . . . . . . . . . Combat Hostiles . | . . . . . . . . . . Parts Melted . | . . . . . . . . . . Heat Transferred 224 | . 224 . . . . . . . . Parts Sabotaged . | . . . . . . . . . . Parts Stolen . | . . . . . . . . . . Parts Stripped . | . . . . . . . . . . Power Chain Reactions . | . . . . . . . . . . Alert | -11 -10 -9 -8 -7 -6 -5 -5 -5 -4 ------- Run | Yrd Mat Mat Mat Fac Fac Fac Upp Upp Fac Peak Influence 342 | . 29 342 66 64 79 61 . . 167 Initial 66 | . . 11 66 7 30 38 . . 60 Average 68 | . 13 131 19 44 60 50 . . 64 Maximum Alert Level 1 | . . 1 . . . . . . . Low Security (%) 91 | 100 100 70 100 100 100 100 . . 100 Level 1 8 | . . 29 . . . . . . . Level 2 . | . . . . . . . . . . Level 3 . | . . . . . . . . . . Level 4 . | . . . . . . . . . . Level 5 . | . . . . . . . . . . High Security . | . . . . . . . . . . Max Security . | . . . . . . . . . . Squads Dispatched 7 | . . 1 1 1 . 2 . . 2 Investigation 1 | . . . . . . 1 . . . Extermination . | . . . . . . . . . . Reinforcement 6 | . . 1 1 1 . 1 . . 2 Assault . | . . . . . . . . . . Garrison . | . . . . . . . . . . Intercept . | . . . . . . . . . . Searches Triggered . | . . . . . . . . . . Construction Impeded . | . . . . . . . . . . Haulers Reinforced . | . . . . . . . . . . Active Scanning Responses . | . . . . . . . . . . Cargo Convoy Interrupts . | . . . . . . . . . . Stealth | -11 -10 -9 -8 -7 -6 -5 -5 -5 -4 --------- Run | Yrd Mat Mat Mat Fac Fac Fac Upp Upp Fac Distress Signals 4 | . . 2 . . . . . . 2 Communications Jammed . | . . . . . . . . . . Distress Signals . | . . . . . . . . . . Times Spotted 57 | . 3 14 3 1 3 1 9 . 23 Peak Tracking Total 13 | . 3 6 2 2 2 1 9 . 13 Tactical Retreats 9 | . . 1 . . . . 2 . 6 Traps | -11 -10 -9 -8 -7 -6 -5 -5 -5 -4 ------- Run | Yrd Mat Mat Mat Fac Fac Fac Upp Upp Fac Traps Triggered 1 | . . . . 1 . . . . . Indirectly . | . . . . . . . . . . Trap Hack Attempts . | . . . . . . . . . . Triggered . | . . . . . . . . . . Disarmed . | . . . . . . . . . . Reprogrammed . | . . . . . . . . . . Reused . | . . . . . . . . . . Traps Extracted . | . . . . . . . . . . Installed . | . . . . . . . . . . Triggered . | . . . . . . . . . . Machines | -11 -10 -9 -8 -7 -6 -5 -5 -5 -4 ---------- Run | Yrd Mat Mat Mat Fac Fac Fac Upp Upp Fac Machines Disabled . | . . . . . . . . . . Max in Single Turn . | . . . . . . . . . . Machines Repaired . | . . . . . . . . . . Machines Dismantled . | . . . . . . . . . . Machines Sabotaged . | . . . . . . . . . . Overloaded Fab Kills . | . . . . . . . . . . Hacking | -11 -10 -9 -8 -7 -6 -5 -5 -5 -4 --------- Run | Yrd Mat Mat Mat Fac Fac Fac Upp Upp Fac Machines Accessed 7 | . . . 1 4 1 1 . . . Terminals 6 | . . . 1 3 1 1 . . . Fabricators 1 | . . . . 1 . . . . . Repair Stations . | . . . . . . . . . . Recycling Units . | . . . . . . . . . . Scanalyzers . | . . . . . . . . . . Garrison Access . | . . . . . . . . . . Total Hacks 17 | . . . 2 11 1 3 . . . Successful 10 | . . . 1 7 1 1 . . . Failed 7 | . . . 1 4 . 2 . . . Catastrophic 2 | . . . . 1 . 1 . . . Database Lockouts . | . . . . . . . . . . Manual 4 | . . . . 4 . . . . . Terminals 15 | . . . 2 9 1 3 . . . Fabricators 2 | . . . . 2 . . . . . Repair Stations . | . . . . . . . . . . Recycling Units . | . . . . . . . . . . Scanalyzers . | . . . . . . . . . . Garrison Access . | . . . . . . . . . . Terminal Hacks 8 | . . . 1 5 1 1 . . . Prototype ID Bank 2 | . . . . 2 . . . . . Open DSF 1 | . . . . . 1 . . . . Level Access Points 1 | . . . . 1 . . . . . Branch Access Points 1 | . . . . . . 1 . . . Terminal Index 1 | . . . . 1 . . . . . Unreport Threat 1 | . . . 1 . . . . . . Locate Traps 1 | . . . . 1 . . . . . Fabricator Hacks 1 | . . . . 1 . . . . . Network Status 1 | . . . . 1 . . . . . Repair Station Hacks . | . . . . . . . . . . Recycling Unit Hacks . | . . . . . . . . . . Scanalyzer . | . . . . . . . . . . Garrison Access Hacks . | . . . . . . . . . . Unauthorized Hacks 1 | . . . . 1 . . . . . Terminals 1 | . . . . 1 . . . . . Botnet 1 | . . . . 1 . . . . . Fabricators . | . . . . . . . . . . Repair Stations . | . . . . . . . . . . Recycling Units . | . . . . . . . . . . Scanalyzers . | . . . . . . . . . . Garrison Access . | . . . . . . . . . . Data Cores Recovered . | . . . . . . . . . . Used . | . . . . . . . . . . Hacking Detections 5 | . . . 1 3 . 1 . . . Full Trace Events 1 | . . . . . . 1 . . . Feedback Events . | . . . . . . . . . . Feedback Blocked . | . . . . . . . . . . Robot Schematics Acquired . | . . . . . . . . . . Robots Built . | . . . . . . . . . . Authchips . | . . . . . . . . . . Time . | . . . . . . . . . . Total Robot Build Rating . | . . . . . . . . . . Part Schematics Acquired . | . . . . . . . . . . Parts Built . | . . . . . . . . . . Authchips . | . . . . . . . . . . Time . | . . . . . . . . . . Total Part Build Rating . | . . . . . . . . . . Parts Repaired . | . . . . . . . . . . Time . | . . . . . . . . . . Parts Recycled . | . . . . . . . . . . Recycled Matter . | . . . . . . . . . . Retrieved Matter . | . . . . . . . . . . Retrieved Components . | . . . . . . . . . . Parts Scanalyzed . | . . . . . . . . . . Part Schematics Acquired . | . . . . . . . . . . Parts Damaged . | . . . . . . . . . . Bothacking | -11 -10 -9 -8 -7 -6 -5 -5 -5 -4 ------------ Run | Yrd Mat Mat Mat Fac Fac Fac Upp Upp Fac Used RIF Installer . | . . . . . . . . . . Robots Hacked . | . . . . . . . . . . Non-combat . | . . . . . . . . . . Combat . | . . . . . . . . . . Robot Hacks Applied . | . . . . . . . . . . Relay Couplers Released . | . . . . . . . . . . Fabnet Peak Effective % . | . . . . . . . . . . Robots Rewired . | . . . . . . . . . . Allies Hacked . | . . . . . . . . . . Hacks Repelled . | . . . . . . . . . . Allies | -11 -10 -9 -8 -7 -6 -5 -5 -5 -4 -------- Run | Yrd Mat Mat Mat Fac Fac Fac Upp Upp Fac Total Allies . | . . . . . . . . . . Largest Group . | . . . . . . . . . . Highest-Rated Group . | . . . . . . . . . . Highest-Rated Ally . | . . . . . . . . . . Total Orders . | . . . . . . . . . . Ally Attacks . | . . . . . . . . . . Total Damage . | . . . . . . . . . . Kills . | . . . . . . . . . . Allies Corrupted . | . . . . . . . . . . Allies Melted . | . . . . . . . . . . Intel | -11 -10 -9 -8 -7 -6 -5 -5 -5 -4 ------- Run | Yrd Mat Mat Mat Fac Fac Fac Upp Upp Fac Robot Analysis Total . | . . . . . . . . . . Derelict Logs Recovered 1 | . . . . . . . 1 . . Drone Launches . | . . . . . . . . . . Drone Recoveries . | . . . . . . . . . . Exploration | -11 -10 -9 -8 -7 -6 -5 -5 -5 -4 ------------- Run | Yrd Mat Mat Mat Fac Fac Fac Upp Upp Fac Turns Passed 1569 | 74 153 418 113 156 144 76 75 90 270 Spaces Moved 2503 | 44 123 457 249 332 229 115 250 255 449 Core 596 | 6 60 433 12 . . . . . 85 Treads 125 | 38 63 24 . . . . . . . Legs . | . . . . . . . . . . Wheels . | . . . . . . . . . . Hover 37 | . . . . . . . . . 37 Flight 1745 | . . . 237 332 229 115 250 255 327 Fastest Speed 26 | 50 50 50 35 35 26 26 29 29 27 Average Speed 43 | 145 106 61 35 35 32 30 29 29 35 Slowest Speed 160 | 160 160 160 50 35 35 109 29 29 100 Overloaded Moves . | . . . . . . . . . . Propulsion Burnouts . | . . . . . . . . . . Robots Hopped 3 | . . . . . . 1 . 1 1 Cave-ins Triggered 1 | . . . . . . 1 . . . Exploration Rate (%) 25 | 4 35 49 38 10 10 6 54 29 15 Regions Visited 9 Branch Regions 2 Pre-discovered Areas 1 | . . . . . . . 1 . . Known Exits Taken 7 | . . 1 1 1 1 1 1 1 . Unknown Exits Taken 2 | 1 1 . . . . . . . . Scrap Searched 2 | . . . . . . . 1 1 . Spaces Dug 32 | . . 6 3 2 4 9 . . 8 Terrain Destroyed 34 | . . 6 3 2 4 9 . . 10 Melee 25 | . . 6 3 2 4 9 . . 1 Projectile . | . . . . . . . . . . AOE 9 | . . . . . . . . . 9 Terrain Rammed 1 | . . . . . . . . . 1 Walls Destroyed . | . . . . . . . . . . Machines Disabled . | . . . . . . . . . . Actions | -11 -10 -9 -8 -7 -6 -5 -5 -5 -4 --------- Run | Yrd Mat Mat Mat Fac Fac Fac Upp Upp Fac Total 2782 | 51 132 521 266 357 284 136 252 269 514 Wait 101 | . . 11 . 8 39 6 . 16 21 Move 2487 | 43 122 456 248 331 228 111 249 252 447 Hop 3 | . . . . . . 1 . 1 1 Pick Up 19 | 2 1 3 3 2 2 3 . . 3 Fast Attach 30 | 6 . 5 3 2 4 . . . 10 Attach 12 | . . . 2 . 2 2 1 . 5 Detach 4 | . . 1 1 . . 1 1 . . Swap 4 | . . 1 1 2 . . . . . Drop 16 | . 2 3 4 3 1 1 1 . 1 Fire 10 | . 7 . . . . . . . 3 Melee 92 | . . 41 4 9 8 10 . . 20 Ram 3 | . . . . . . . . . 3 Kick . | . . . . . . . . . . Crush . | . . . . . . . . . . Escape Stasis 1 | . . . . . . 1 . . . Rewire . | . . . . . . . . . . Trap . | . . . . . . . . . . Miscellaneous . | . . . . . . . . . . Route ------- -11/Scrapyard -10/Materials (discovered 2 exits: [*Mat] / [*Min]) -9/Materials -8/Materials -7/Factory (discovered 5 exits: *Fac x4 / [*Low]) -6/Factory (discovered 2 exits: *Fac x2) -5/Factory (discovered 2 exits: *Upp x2) -5/Upper Caves -5/Upper Caves -4/Factory (discovered 1 exit: [*Res]) History --------- Turn | Location | Event 47 | -11/Scrapyard | Discovered new exit (range 12) 75 | -11/Scrapyard | Entered Materials 95 | -10/Materials | Discovered new exit (range 16) 205 | -10/Materials | Discovered new exit (range 11) 228 | -10/Materials | Entered another Materials area 228 | -9/Materials | Evolved 2 slots: Utility x2 300 | -9/Materials | Build established: Mutant 633 | -9/Materials | Discovered new exit (range 12) 646 | -9/Materials | Identified exit to Materials 646 | -9/Materials | Entered another Materials area 646 | -8/Materials | Evolved 2 slots: Utility x2 745 | -8/Materials | Discovered new exit (range 3) 758 | -8/Materials | Identified exit to Factory 759 | -8/Materials | Entered Factory 759 | -7/Factory | Evolved 2 slots: Propulsion x1, Utility x1 771 | -7/Factory | Identified exit to Factory 862 | -7/Factory | Discovered new exit (range 16) 915 | -7/Factory | Entered another Factory area 915 | -6/Factory | Evolved 2 slots: Propulsion x1, Utility x1 926 | -6/Factory | Build established: Scout 984 | -6/Factory | Discovered new exit (range 11) 1011 | -6/Factory | Discovered new exit (range 16) 1058 | -6/Factory | Identified exit to Factory 1059 | -6/Factory | Entered another Factory area 1059 | -5/Factory | Evolved 2 slots: Utility x1, Weapon x1 1075 | -5/Factory | Identified exit to Upper Caves 1126 | -5/Factory | Crushed by falling debris 1135 | -5/Factory | Entered Upper Caves 1187 | -5/Upper Caves | Spotted B-75 Beast 1207 | -5/Upper Caves | Discovered new exit (range 10) 1209 | -5/Upper Caves | Identified exit to Upper Caves 1210 | -5/Upper Caves | Entered another Upper Caves area 1297 | -5/Upper Caves | Discovered new exit (range 10) 1300 | -5/Upper Caves | Identified exit to Factory 1300 | -5/Upper Caves | Entered Factory 1300 | -4/Factory | Evolved 2 slots: Power x1, Utility x1 1380 | -4/Factory | Core integrity fell below 50% 1419 | -4/Factory | Lost 11 parts (1p2n4u4w) 1497 | -4/Factory | Spotted B-86 Titan 1527 | -4/Factory | Released all parts (7) 1529 | -4/Factory | Core integrity fell below 20% 1563 | -4/Factory | Lost 5 parts (3n1u1w) 1568 | -4/Factory | Discovered new exit (range 16) 1570 | -4/Factory | Destroyed by S-27 Virus with Autogun Last Messages --------------- 01519_ Tesla Rifle destroyed. 01523_ Antigrav System destroyed. 01526_ Adv. Reaction Control System destroyed. 01527_ Released Antigrav System. 01527_ Released Terrain Scanner. 01527_ Released Mic. Fission Core. 01527_ Released Imp. Surge Thruster. 01527_ Released System Shield. 01527_ Released Imp. Signal Interpreter. 01527_ Released Melee Analysis Suite. 01527_ Acquired Imp. Surge Thruster. 01528_ C/ D=FTWM| RGIUHA XVS 01532_ Imp. Surge Thruster destroyed. 01534_ Acquired Adv. Signal Interpreter. 01537_ Slammed into S-27 Virus. 01538_ Destabilizing: System corrupted (+1). 01538_ R-10 Processor collects Terrain Scanner. 01542_ S-27 Virus destroyed. 01561_ System corrupted: Heat flow error (+238). 01568_ EXIT=FOUND Map ----- +----------------------------------------------------+ | ?????????????????????????????????????????????????? | | ?????????????????????????????????????????????????? | | ?????????????????????????????????????????????????? | | ?????????????????????????????????????????????????? | | ?????????????????????????????????????????????????? | | ?????????????????????????????????????????????????? | | ?????????????????????????????????????????????????? | | ?????????????????????????????????????????????????? | | ?????????????????????????????????????????????????? | | ?????????????????????????? ???????????????????? | | ???????????????????????? ???????????????????? | | ???????????????????????? ??????????????????? | | ????????????????????????# #??????????????????? | | ????????????????????????# #???????????? ?????? | | ????????????????????????# #???????????? ?????? | | ????????????????????????# #???????????? #????? | | ????????????????????????# #???????????? #????? | | ????????????????????????# #???????????? #????? | | ????????????????????????# #???????????? #????? | | ????????????????????????# #???????????? ##???? | | ????????????############# ###########+# T#???? | | ??????????? #???? | | ??????????? #????? | | ??????????# #????? | | ??????????# ss #????? | | ??????????# < @ s #?#### | | ????????????????##########+############ #? | | ???????????????????????? ?????????# # | | ??????????????????????# """ ???????# # | | ??????????????????????# """ #??????# + "" | | ??????????????????????# """ #??????# # S"" | | ??????????????????????# #?###### # "" | | ??????????????????????# " " ! + #?#### | | ??????????????????????# "R" ##########/#######? | | ??????????????????????# """ ?????# #? | | ??????????????????????# ??????# """ """ ## | | ??????????????????????####?##??????# """ """ / | | ???????????????????????????????????# """ """ ## | | ???????????????????????????????????# "" "" #? | | ???????????????????????????????????? "" "" #? | | ???????????????????????????????????? #? | | ???????????????????????????????????#?? #? | | ?????????????????????????????????????? "" #? | | ????????????????????????????????????? """#? | | ????????????????????????????????????? S"#? | | ???????????????????????????????????? #? | | ????????????????????????????????????##########?#?? | | ?????????????????????????????????????????????????? | | | | | +----------------------------------------------------+ Best States ------------- Heat Dissipation 43 Energy Generation 15 Energy Capacity 240 Matter Stores 300 Matter Capacity 300 Sight Range 20 Robot Scan Range 14 Terrain Scan Range 16 Terrain Scan Density 85 Evasion (%) 65 Melee Accuracy 5 Recoil Reduction 2 Offensive Hacking 10 Defensive Hacking 10 Item Schematics ----------------- None Robot Schematics ------------------ None Fabricated ------------ Nothing Alien Tech Used ----------------- None Achievements -------------- None Challenges ------------ None Game ------ Seed HardcellDirtyLegs Manual? 0 Play Time 00:31:37 Cumulative 120.9 hours Start 2025.03.09 @ 16:19:19 End 2025.03.09 @ 18:51:53 Sessions 3 Manual Loads 0 Difficulty Rogue Special Mode None Game No. 240 Rogue 172 Adventurer 15 Explorer 53 Win Type - Total 3 Types 3/0/0/0/0/0/0/0/0 Lore% 25 Gallery% 59 Achievement% 46 Wizard Run 0 Options --------- Layout 0 ASCII 0 Keyboard 0 Movement Numpad Keybinds 0 Fullscreen 1 Font 18/SmallcapsGlow Map View 76x50 Zoom Use 0% Tactical HUD 1 Map Filters NONE Filters NONE Steam 1 RUN: 59f91e06-24f6-4d56-a83b-46f26e6a7681